bitfinex/quotes_BTCUSD_20251031
["timestamp","ask_amount","ask_price","bid_price","bid_amount"]
[1761936477255,2.56925559,109620.0,109610.0,0.02103804]
[1761936477511,3.32470606,109620.0,109610.0,0.02103804]
[1761936478106,2.98470606,109620.0,109610.0,0.03682801]
[1761936478546,2.98570606,109620.0,109610.0,0.03682801]
[1761936478767,2.98470606,109620.0,109610.0,0.03682801]
[1761936479172,2.22925559,109620.0,109610.0,0.03682801]
[1761936479372,2.98470606,109620.0,109610.0,0.03682801]
[1761936479632,2.96714606,109620.0,109610.0,0.03682801]
[1761936479833,0.02924714,109620.0,109610.0,0.24577311]
[1761936480087,0.01493307,109620.0,109610.0,0.24577311]
[1761936480625,0.94455228,109630.0,109620.0,0.03240322]
[1761936480626,2.76001371,109630.0,109620.0,0.03240322]
[1761936480828,0.97966134,109640.0,109620.0,0.05888322]
[1761936481030,0.97966134,109640.0,109620.0,0.24132993]
[1761936481304,2.52241517,109640.0,109630.0,0.03646997]
[1761936481561,2.34,109640.0,109630.0,0.03646997]
[1761936481771,2.21381726,109640.0,109630.0,0.03646997]
[1761936481980,2.23980726,109640.0,109630.0,0.01876997]
[1761936482406,2.24080726,109640.0,109630.0,0.02068]
[1761936482608,2.24080726,109640.0,109630.0,0.03546997]
[1761936483089,0.03240209,109640.0,109630.0,0.03546997]
[1761936483296,0.21481726,109640.0,109630.0,0.03546997]
[1761936483517,0.001,109640.0,109630.0,0.24438178]
[1761936483735,0.003,109640.0,109630.0,0.24438178]
[1761936484372,0.001,109640.0,109630.0,0.24438178]
[1761936484590,0.001,109640.0,109630.0,0.24538178]
[1761936484792,2.20508551,109660.0,109650.0,0.01478997]
[1761936485011,2.22264551,109660.0,109650.0,0.03775997]
[1761936485244,0.1823663,109670.0,109660.0,0.01478997]
[1761936485454,2.2259163,109670.0,109650.0,0.04753997]
[1761936485656,2.0,109660.0,109650.0,0.04753997]
[1761936485887,2.0,109660.0,109650.0,0.22993851]
[1761936486099,2.001,109660.0,109650.0,0.24963851]
[1761936486297,0.19588704,109670.0,109650.0,0.06423997]
[1761936486507,2.0,109660.0,109650.0,0.20345851]
[1761936486920,2.002,109660.0,109650.0,0.03775997]
[1761936487139,0.002,109660.0,109650.0,0.26487836]
[1761936487342,0.18240621,109690.0,109670.0,0.01478997]
[1761936487549,2.18234865,109680.0,109670.0,0.02732997]
[1761936487761,2.18234865,109680.0,109670.0,0.23617524]
[1761936487762,2.0,109680.0,109670.0,0.23617524]
[1761936487967,2.0,109680.0,109670.0,0.25287524]
[1761936488812,2.001,109680.0,109670.0,0.07550997]
[1761936489023,0.18334865,109680.0,109670.0,0.07550997]
[1761936489238,0.29144602,109680.0,109670.0,0.01478997]
[1761936489454,0.1823788,109670.0,109660.0,0.01478997]
[1761936489657,0.19246608,109680.0,109670.0,0.04402997]
[1761936490309,0.28400345,109680.0,109670.0,0.04702997]
[1761936490511,0.31586636,109680.0,109670.0,0.04702997]
[1761936490722,0.31586636,109680.0,109670.0,0.04402997]
[1761936490931,0.18236527,109670.0,109660.0,0.01478997]
[1761936491157,0.18236527,109670.0,109660.0,0.04126997]
[1761936491379,1.07031683,109680.0,109670.0,0.22639524]
[1761936491380,0.01430291,109680.0,109670.0,0.22639524]
[1761936491585,0.01430291,109680.0,109670.0,0.07050997]
[1761936491791,0.01430291,109680.0,109670.0,0.25287524]
[1761936492889,0.01430291,109680.0,109670.0,0.25687524]
[1761936493096,0.19665156,109680.0,109670.0,0.07450997]
[1761936493299,0.19665156,109680.0,109670.0,0.04802997]
[1761936493744,0.19665156,109680.0,109670.0,0.07236997]
[1761936494192,0.01430291,109680.0,109670.0,0.25473524]
[1761936496599,0.19665156,109680.0,109670.0,0.07236997]
[1761936496814,3.12813982,109680.0,109670.0,0.004]
[1761936497030,3.44634624,109680.0,109670.0,0.004]
[1761936498522,3.46065559,109680.0,109670.0,0.004]
[1761936499188,0.1823819,109660.0,109650.0,0.02654997]
[1761936499389,0.1988819,109660.0,109650.0,0.04319997]
[1761936499980,2.1823819,109660.0,109650.0,0.06662997]
[1761936500184,0.1823819,109660.0,109650.0,0.06662997]
[1761936500396,0.19421023,109670.0,109650.0,0.06662997]
[1761936500617,0.1823819,109660.0,109650.0,0.04997997]
[1761936501025,0.1823819,109660.0,109650.0,0.06662997]
[1761936501440,0.1823819,109660.0,109650.0,0.05484]
[1761936501854,0.1823819,109660.0,109650.0,0.06962997]
[1761936502274,0.1823819,109660.0,109650.0,0.04619997]
[1761936502709,0.1988819,109660.0,109650.0,0.01778997]
[1761936502932,0.97867237,109660.0,109650.0,0.01778997]
[1761936503144,0.97967237,109660.0,109650.0,0.01778997]
[1761936503358,0.2232219,109660.0,109650.0,0.003]
[1761936503573,0.97867237,109660.0,109650.0,0.003]
[1761936503777,0.97967237,109660.0,109650.0,0.01778997]
[1761936503991,0.97867237,109660.0,109650.0,0.01778997]
[1761936504220,2.97967237,109660.0,109650.0,0.003]
[1761936504430,3.06949138,109660.0,109650.0,0.003]
[1761936504641,3.42379697,109660.0,109650.0,0.003]
[1761936505300,0.18339854,109650.0,109640.0,0.00022245]
[1761936505523,1.07369638,109650.0,109640.0,0.00027045]
[1761936505968,3.07369638,109650.0,109640.0,0.00027045]
[1761936506224,3.1336529,109650.0,109640.0,0.00027045]
[1761936506494,3.07369638,109650.0,109640.0,0.00027045]
[1761936507419,3.07369638,109650.0,109640.0,0.00327045]
[1761936509961,3.07769638,109650.0,109640.0,0.00027045]
[1761936510374,3.07769638,109650.0,109640.0,0.00227045]
[1761936511160,2.29790591,109650.0,109640.0,0.01706042]
[1761936511427,0.18639854,109650.0,109640.0,0.05714042]
[1761936512166,0.5223819,109660.0,109650.0,0.01478997]
[1761936512395,0.5388819,109660.0,109650.0,0.03143997]
[1761936512608,1.29433237,109660.0,109650.0,0.03143997]
[1761936512763,1.38586974,109660.0,109650.0,0.03143997]
[1761936513220,1.38686974,109660.0,109650.0,0.03143997]
[1761936513427,1.38586974,109660.0,109650.0,0.03143997]
[1761936513996,3.41020974,109660.0,109650.0,0.01778997]
[1761936514582,3.41120974,109660.0,109650.0,0.003]
[1761936514786,3.41120974,109660.0,109650.0,0.01778997]
[1761936515165,3.41120974,109660.0,109650.0,0.003]
[1761936515367,3.41020974,109660.0,109650.0,0.01778997]
[1761936516620,3.41120974,109660.0,109650.0,0.003]
[1761936517759,0.18339854,109650.0,109640.0,0.00027045]
[1761936517962,0.95904901,109650.0,109640.0,0.01506042]
[1761936518173,0.95904901,109650.0,109640.0,0.03171042]
[1761936518379,0.95904901,109650.0,109640.0,0.01692045]
[1761936518586,0.20359854,109650.0,109640.0,0.03171042]
[1761936518787,0.95904901,109650.0,109640.0,0.03171042]
[1761936518990,0.95804901,109650.0,109640.0,0.03171042]
[1761936519192,0.95904901,109650.0,109640.0,0.03171042]
[1761936519401,0.95804901,109650.0,109640.0,0.03171042]
[1761936519619,0.95804901,109650.0,109640.0,0.03471042]
[1761936519829,0.95904901,109650.0,109640.0,0.03471042]
[1761936520033,0.95804901,109650.0,109640.0,0.03471042]
[1761936520235,0.98238901,109650.0,109640.0,0.01806042]
[1761936520658,0.98238901,109650.0,109640.0,0.03471042]
[1761936521077,0.98338901,109650.0,109640.0,0.03471042]
[1761936521295,0.98338901,109650.0,109640.0,0.01806042]
[1761936521571,0.98338901,109650.0,109640.0,0.00327045]
[1761936521773,0.98338901,109650.0,109640.0,0.01806042]
[1761936522225,3.41320802,109650.0,109640.0,0.00327045]
[1761936522430,3.32338901,109650.0,109640.0,0.00327045]
[1761936523295,3.32338901,109650.0,109640.0,0.00027045]
[1761936523709,3.32338901,109650.0,109640.0,0.00227045]
[1761936523922,3.32166338,109650.0,109640.0,0.00227045]
[1761936524155,3.32366338,109650.0,109640.0,0.00227045]
[1761936524357,3.33797114,109650.0,109640.0,0.00227045]
[1761936530482,3.40791104,109650.0,109640.0,0.00227045]
[1761936531147,3.49773005,109650.0,109630.0,0.01478997]
[1761936531352,2.18244845,109620.0,109610.0,0.0004]
[1761936531506,0.96193892,109620.0,109610.0,0.00054449]
[1761936531704,0.98467892,109620.0,109610.0,0.00054449]
[1761936531902,3.32467892,109620.0,109610.0,0.00121205]
[1761936532104,3.32567892,109620.0,109610.0,0.00121205]
[1761936532311,2.54648845,109620.0,109610.0,0.01979205]
[1761936532517,3.32467892,109620.0,109610.0,0.00121205]
[1761936532713,3.32567892,109620.0,109610.0,0.00321205]
[1761936533101,3.32467892,109620.0,109610.0,0.00321205]
[1761936533875,3.32567892,109620.0,109610.0,0.00321205]
[1761936534916,3.32667892,109620.0,109610.0,0.00321205]
[1761936535335,3.05941908,109620.0,109610.0,0.00321205]
[1761936536173,3.14923809,109620.0,109610.0,0.00321205]
[1761936536383,3.14823809,109620.0,109610.0,0.00321205]
[1761936537487,2.66004746,109620.0,109610.0,0.00321205]
[1761936537693,2.66104746,109620.0,109610.0,0.00321205]
[1761936537906,3.14923809,109620.0,109610.0,0.00321205]
[1761936540793,3.53602864,109610.0,109600.0,0.0004]
[1761936541010,3.67533765,109610.0,109600.0,0.0004]
[1761936542091,3.67533765,109610.0,109600.0,1e-08]
[1761936542340,2.59677403,109600.0,109590.0,1e-08]
[1761936542557,3.67569265,109600.0,109590.0,1e-08]
[1761936542769,3.76551166,109600.0,109590.0,1e-08]
[1761936543226,2.79345039,109600.0,109590.0,1e-08]
[1761936543441,3.76983165,109600.0,109590.0,1e-08]
[1761936543881,3.78683164,109600.0,109590.0,1e-08]
[1761936544534,3.78783164,109600.0,109590.0,1e-08]
[1761936544743,3.77783165,109600.0,109590.0,1e-08]
[1761936545006,3.78783164,109600.0,109590.0,1e-08]
[1761936545443,3.79783163,109600.0,109590.0,1e-08]
[1761936545654,3.78783164,109600.0,109590.0,1e-08]
[1761936546515,3.78783164,109600.0,109590.0,0.0004452]
[1761936546729,3.78783164,109600.0,109590.0,1e-08]
[1761936547536,3.04788796,109580.0,109570.0,8e-05]
[1761936547774,3.07463796,109580.0,109570.0,8e-05]
[1761936547976,3.18719697,109580.0,109570.0,8e-05]
[1761936548798,3.18719697,109580.0,109570.0,0.00108]
[1761936549682,3.20129631,109580.0,109570.0,0.00108]
[1761936550080,3.20129631,109580.0,109570.0,0.00208]
[1761936551241,3.26972567,109580.0,109570.0,0.00208]
[1761936553221,3.14272438,109580.0,109570.0,0.00252531]
[1761936553447,3.15804528,109580.0,109570.0,0.00252531]
[1761936554309,3.15704528,109580.0,109570.0,0.00252531]
[1761936555166,2.81704528,109580.0,109570.0,0.01860531]
[1761936555347,0.19661439,109580.0,109570.0,0.05304531]
[1761936555562,0.50228997,109580.0,109570.0,0.05304531]
[1761936556272,0.68480502,109580.0,109570.0,0.05304531]
[1761936556445,0.19661439,109580.0,109570.0,0.05304531]
[1761936556648,0.21319439,109580.0,109570.0,0.03018531]
[1761936556851,0.70138502,109580.0,109570.0,0.03018531]
[1761936557282,0.70138502,109580.0,109570.0,0.01410531]
[1761936557434,0.72637502,109580.0,109570.0,0.00252531]
[1761936557641,3.06637502,109580.0,109570.0,0.00252531]
[1761936557833,3.06737502,109580.0,109570.0,0.00252531]
[1761936561560,3.1035573,109580.0,109570.0,0.00252531]
[1761936562392,3.1035573,109580.0,109570.0,0.00152531]
[1761936562604,3.19337631,109580.0,109570.0,0.00152531]
[1761936562815,3.19337631,109580.0,109570.0,0.00052531]
[1761936563025,3.26106575,109580.0,109570.0,0.00052531]
[1761936563654,3.75025638,109580.0,109570.0,0.00052531]
[1761936564520,3.26206575,109580.0,109570.0,0.00052531]
[1761936564725,3.75025638,109580.0,109570.0,0.00052531]
[1761936565789,3.26206575,109580.0,109570.0,0.00052531]
[1761936566218,3.27638442,109580.0,109570.0,0.00052531]
[1761936566823,3.26206575,109580.0,109570.0,0.00052531]
[1761936567545,3.75025638,109580.0,109570.0,0.00052531]
[1761936568314,3.26206575,109580.0,109570.0,0.00052531]
[1761936568737,3.27638732,109580.0,109570.0,0.00052531]
[1761936568969,3.26206575,109580.0,109570.0,0.00052531]
[1761936572066,3.27638732,109580.0,109570.0,0.00052531]
[1761936575861,3.26206575,109580.0,109570.0,0.00052531]
[1761936577303,4.063998,109580.0,109570.0,0.00052531]
[1761936577479,4.0783168,109580.0,109570.0,0.00052531]
[1761936577905,4.063998,109580.0,109570.0,0.00052531]
[1761936578873,4.07831952,109580.0,109570.0,0.00052531]
[1761936581147,4.09263835,109580.0,109570.0,0.00052531]
[1761936582798,2.80251547,109580.0,109570.0,0.00052531]
[1761936583059,4.09263835,109580.0,109570.0,0.00052531]
[1761936584309,4.09972835,109580.0,109570.0,0.00052531]
[1761936584960,0.18256503,109550.0,109540.0,0.02677227]
[1761936585164,0.63581741,109550.0,109540.0,0.02677227]
[1761936585376,0.66070741,109550.0,109540.0,0.02677227]
[1761936585580,0.66070741,109550.0,109540.0,0.02744047]
[1761936586216,0.66070741,109550.0,109540.0,0.02944047]
[1761936586638,3.52228574,109550.0,109540.0,1e-08]
[1761936587709,3.60880092,109550.0,109540.0,0.00600001]
[1761936588905,3.424719,109550.0,109540.0,0.00600001]
[1761936589110,3.6216082,109550.0,109540.0,0.00600001]
[1761936589277,3.67813822,109550.0,109540.0,0.00600001]
[1761936589687,3.58731921,109550.0,109540.0,0.00600001]
[1761936590074,3.06483789,109550.0,109540.0,0.03393001]
[1761936590492,0.00013142,109550.0,109540.0,0.05862001]
[1761936590755,0.00013142,109550.0,109540.0,0.67124267]
[1761936592665,0.00013142,109550.0,109540.0,0.23520171]
[1761936592881,0.00013142,109550.0,109540.0,0.66524267]
[1761936593087,0.00013142,109550.0,109540.0,0.67324266]
[1761936593293,0.00013142,109550.0,109540.0,1.10528362]
[1761936593501,0.00013142,109550.0,109540.0,1.12246783]
[1761936593691,0.00013142,109550.0,109540.0,1.15865011]
[1761936594334,0.00013142,109550.0,109540.0,1.15065011]
[1761936594535,0.00013142,109550.0,109540.0,1.15665011]
[1761936594742,0.00013142,109550.0,109540.0,1.17389221]
[1761936594946,0.00013142,109550.0,109540.0,1.2537856]
[1761936595124,0.00013142,109550.0,109540.0,1.2507856]
[1761936595363,0.00013142,109550.0,109540.0,1.2627856]
[1761936596130,0.00013142,109550.0,109540.0,1.19789219]
[1761936596532,0.00013142,109550.0,109540.0,1.2627856]
[1761936597140,0.00013142,109550.0,109540.0,1.19789219]
[1761936597354,0.00013142,109550.0,109540.0,1.46496383]
[1761936597754,0.00013142,109550.0,109540.0,1.47996487]
[1761936597931,0.00013142,109550.0,109540.0,1.54485828]
[1761936598183,0.00013142,109550.0,109540.0,3.54485828]
[1761936598771,0.00013142,109550.0,109540.0,3.52985724]
[1761936600143,0.00013142,109550.0,109540.0,3.54444282]
[1761936600821,0.00013142,109550.0,109540.0,3.52985724]
[1761936601036,0.00013142,109550.0,109540.0,0.76442894]
[1761936601269,0.00013142,109550.0,109540.0,0.31335326]
[1761936601515,0.00013142,109550.0,109540.0,0.3624675]
[1761936601742,0.00013142,109550.0,109540.0,1.45789581]
[1761936602051,0.00013142,109550.0,109540.0,1.11789581]
[1761936602408,0.00013142,109550.0,109540.0,1.51985725]
[1761936602648,0.00013142,109550.0,109540.0,0.68953554]
[1761936603332,0.00013142,109550.0,109540.0,0.73863531]
[1761936603572,0.00013142,109550.0,109540.0,0.33248375]
[1761936603801,0.00013142,109550.0,109540.0,0.28338398]
[1761936604041,0.00013142,109550.0,109540.0,0.62338398]
[1761936605428,0.00013142,109550.0,109540.0,0.06462]
[1761936605668,0.00013142,109550.0,109540.0,0.2472017]
[1761936606582,0.00013142,109550.0,109540.0,0.2382017]
[1761936606813,0.00013142,109550.0,109540.0,0.2372017]
[1761936607078,0.00013142,109550.0,109540.0,0.2382017]
[1761936609164,0.00013142,109550.0,109540.0,1.33363001]
[1761936609875,0.00013142,109550.0,109540.0,1.41891206]
[1761936610585,0.00013142,109550.0,109540.0,0.62730147]
[1761936610811,0.00013142,109550.0,109540.0,0.5782017]
[1761936616124,0.00013142,109550.0,109540.0,0.2382017]
[1761936620379,0.00013142,109550.0,109540.0,1.04272978]
[1761936620586,0.00013142,109550.0,109540.0,1.38272978]
[1761936620805,0.00013142,109550.0,109540.0,1.41891206]
[1761936621704,0.00013142,109550.0,109540.0,1.36981229]
[1761936623241,0.00013142,109550.0,109540.0,1.4347057]
[1761936624289,0.00013142,109550.0,109540.0,1.4337057]
[1761936624516,0.00013142,109550.0,109540.0,1.44370569]
[1761936624723,0.00013142,109550.0,109540.0,1.44470569]
[1761936624935,0.00013142,109550.0,109540.0,1.44270569]
[1761936625160,0.00013142,109550.0,109540.0,1.44470569]
[1761936625376,0.00013142,109550.0,109540.0,1.59410569]
[1761936625591,0.00013142,109550.0,109540.0,1.59210569]
[1761936626023,0.00013142,109550.0,109540.0,1.59510569]
[1761936626231,0.00013142,109550.0,109540.0,1.59710569]
[1761936626680,0.00013142,109550.0,109540.0,1.54221227]
[1761936627575,0.00013142,109550.0,109540.0,1.60789772]
[1761936627854,0.00013142,109550.0,109540.0,1.54221227]
[1761936630277,0.00013142,109550.0,109540.0,1.53221228]
[1761936631343,0.00013142,109550.0,109540.0,1.61427894]
[1761936631558,0.00013142,109550.0,109540.0,0.85885063]
[1761936633031,0.00013142,109550.0,109540.0,0.86885062]
[1761936633243,0.00013142,109550.0,109540.0,1.62427893]
[1761936633465,0.00013142,109550.0,109540.0,1.55858455]
[1761936633676,0.00013142,109550.0,109540.0,1.62428273]
[1761936633889,0.00013142,109550.0,109540.0,1.55858455]
[1761936635234,0.00013142,109550.0,109540.0,1.54858456]
[1761936635462,0.00013142,109550.0,109540.0,1.55858455]
[1761936636289,0.00013142,109550.0,109540.0,1.54858456]
[1761936636498,0.00013142,109550.0,109540.0,1.55858455]
[1761936637547,0.00013142,109550.0,109540.0,1.62427793]
[1761936637760,0.00013142,109550.0,109540.0,1.54858456]
[1761936638001,0.00013142,109550.0,109540.0,1.6242781]
[1761936638420,0.00013142,109550.0,109540.0,1.61427811]
[1761936638656,0.00013142,109550.0,109540.0,1.6242781]
[1761936638864,0.00013142,109550.0,109540.0,1.55858455]
[1761936639070,0.00013142,109550.0,109540.0,1.62428308]
[1761936639283,0.00013142,109550.0,109540.0,1.62428291]
[1761936639490,0.00013142,109550.0,109540.0,1.61428123]
[1761936639704,0.00013142,109550.0,109540.0,1.62428101]
[1761936640354,0.00013142,109550.0,109540.0,0.30008873]
[1761936640618,0.00013142,109550.0,109540.0,0.3168468]
[1761936641041,0.00013142,109550.0,109540.0,0.6568468]
[1761936641461,0.00013142,109550.0,109540.0,0.69302908]
[1761936641672,0.00013142,109550.0,109540.0,1.44845739]
[1761936641900,0.00013142,109550.0,109540.0,1.39918456]
[1761936643222,0.00013142,109550.0,109540.0,0.64375625]
[1761936645966,0.00013142,109550.0,109540.0,0.79315625]
[1761936646609,0.00013142,109550.0,109540.0,0.85885271]
[1761936646853,0.00013142,109550.0,109540.0,0.79315625]
[1761936647520,0.00013142,109550.0,109540.0,0.85885271]
[1761936647736,0.00013142,109550.0,109540.0,0.75697397]
[1761936649854,0.00013142,109550.0,109540.0,0.80628425]
[1761936650494,0.00013142,109550.0,109540.0,0.80228425]
[1761936650676,0.00013142,109550.0,109540.0,0.80428425]
[1761936650876,0.00013142,109550.0,109540.0,0.80228425]
[1761936651296,0.00013142,109550.0,109540.0,0.80328425]
[1761936651787,0.00013142,109550.0,109540.0,0.65388425]
[1761936652375,0.00013142,109550.0,109540.0,0.31388425]
[1761936653011,0.00013142,109550.0,109540.0,0.26457397]
[1761936656597,0.00013142,109550.0,109540.0,0.08199227]
[1761936656799,0.00013142,109550.0,109540.0,0.26457397]
[1761936656995,0.00013142,109550.0,109540.0,0.08199227]
[1761936657358,0.00013142,109550.0,109540.0,0.26457397]
[1761936657543,0.00013142,109550.0,109540.0,0.08199227]
[1761936659073,0.00013142,109550.0,109540.0,0.26457397]
[1761936659286,0.00013142,109550.0,109540.0,0.08199227]
[1761936659727,0.00013142,109550.0,109540.0,0.26457397]
[1761936660136,0.00013142,109550.0,109540.0,0.08199227]
[1761936660343,0.00013142,109550.0,109540.0,0.26457397]
[1761936660552,0.00013142,109550.0,109540.0,0.08199227]
[1761936660933,0.18269645,109550.0,109540.0,0.08199227]
[1761936661131,0.61265635,109550.0,109540.0,0.08199227]
[1761936661533,0.43009132,109550.0,109540.0,0.08199227]
[1761936661858,0.61265635,109550.0,109540.0,0.08199227]
[1761936662060,0.62430487,109560.0,109540.0,0.08199227]
[1761936662182,0.4299599,109550.0,109540.0,0.0824745]
[1761936662386,0.4299599,109550.0,109540.0,0.0658745]
[1761936662632,0.61252493,109550.0,109540.0,0.0658745]
[1761936662836,0.61252493,109550.0,109540.0,0.0794145]
[1761936663044,0.18256503,109550.0,109540.0,0.0784145]
[1761936663416,0.18256503,109550.0,109540.0,0.0794145]
[1761936663655,0.61252493,109550.0,109540.0,0.0794145]
[1761936664064,0.4299599,109550.0,109540.0,0.0794145]
[1761936664277,0.61252493,109550.0,109540.0,0.0794145]
[1761936664708,0.18256503,109550.0,109540.0,0.0794145]
[1761936664902,0.61252493,109550.0,109540.0,0.0794145]
[1761936665111,0.62775493,109550.0,109540.0,0.0794145]
[1761936665904,0.61252493,109550.0,109540.0,0.0794145]
[1761936666145,1.09208483,109550.0,109540.0,0.0278545]
[1761936666687,3.50397341,109550.0,109540.0,0.0278545]
[1761936667210,3.5314192,109550.0,109540.0,0.0268545]
[1761936667416,3.5344192,109550.0,109540.0,0.0268545]
[1761936668704,2.58003082,109550.0,109540.0,0.0772245]
[1761936668905,3.00999072,109550.0,109540.0,0.0772245]
[1761936669107,3.00999072,109550.0,109540.0,0.0542845]
[1761936669337,2.98254493,109550.0,109540.0,0.0772245]
[1761936669553,2.98254493,109550.0,109540.0,0.0542845]
[1761936669985,0.343,109550.0,109540.0,0.0772245]
[1761936670198,0.003,109550.0,109540.0,0.2598062]
[1761936670666,0.003,109550.0,109540.0,1.119726]
[1761936671107,0.003,109550.0,109540.0,1.54521856]
[1761936671540,0.0008294,109560.0,109550.0,0.18256503]
[1761936671753,0.0008294,109560.0,109550.0,0.22104503]
[1761936672994,0.0008294,109560.0,109550.0,0.70941762]
[1761936673468,0.0008294,109560.0,109550.0,0.22104503]
[1761936673723,0.0008294,109560.0,109550.0,0.22204503]
[1761936673928,0.0008294,109560.0,109550.0,0.27135531]
[1761936674139,0.0008294,109560.0,109550.0,0.22204503]
[1761936674269,0.0008294,109560.0,109550.0,0.22404503]
[1761936674482,0.0008294,109560.0,109550.0,0.27335531]
[1761936674684,0.06933978,109560.0,109550.0,0.19661005]
[1761936674891,0.0008294,109560.0,109550.0,0.19661005]
[1761936678707,0.0008294,109560.0,109550.0,0.22404503]
[1761936681351,0.0008294,109560.0,109550.0,0.23532503]
[1761936682924,0.0008294,109560.0,109550.0,0.23232503]
[1761936683131,0.0038294,109560.0,109550.0,0.23232503]
[1761936684232,0.31797092,109580.0,109560.0,0.02712]
[1761936684436,0.20534819,109570.0,109560.0,0.04986]
[1761936684641,0.18253173,109570.0,109560.0,0.04986]
[1761936685867,0.18353173,109570.0,109560.0,0.04986]
[1761936686301,0.18853173,109570.0,109560.0,0.04986]
[1761936687332,0.20391173,109570.0,109560.0,0.04986]
[1761936687529,0.20491173,109570.0,109560.0,0.04986]
[1761936687941,0.20391173,109570.0,109560.0,0.04986]
[1761936688167,0.72707432,109570.0,109560.0,0.02712]
[1761936688373,0.23870173,109570.0,109560.0,0.02712]
[1761936688569,0.20049173,109570.0,109560.0,0.04986]
[1761936689024,0.21587173,109570.0,109560.0,0.04986]
[1761936689380,0.21587173,109570.0,109560.0,0.02712]
[1761936689769,0.21609439,109570.0,109560.0,0.02712]
[1761936690809,0.21709439,109570.0,109560.0,0.02712]
[1761936691011,0.21609439,109570.0,109560.0,0.02712]
[1761936691423,0.64698914,109570.0,109560.0,0.02712]
[1761936691579,0.64598914,109570.0,109560.0,0.02712]
[1761936691993,0.64598914,109570.0,109560.0,0.04986]
[1761936694268,0.64598914,109570.0,109560.0,0.02712]
[1761936694653,0.66881914,109570.0,109560.0,0.02712]
[1761936694937,0.66881914,109570.0,109550.0,0.03402]
[1761936694938,0.18254837,109560.0,109550.0,0.03402]
[1761936695156,1.09250787,109560.0,109550.0,0.01128]
[1761936695369,0.18256503,109550.0,109540.0,0.06231398]
[1761936695614,0.62783978,109550.0,109540.0,0.07815398]
[1761936695810,0.62783978,109550.0,109540.0,0.05541398]
[1761936695811,0.63979978,109550.0,109540.0,0.05541398]
[1761936696654,0.20990503,109550.0,109540.0,0.05541398]
[1761936696793,0.63979978,109550.0,109540.0,0.05641398]
[1761936697179,0.64079978,109550.0,109540.0,0.05641398]
[1761936697380,0.63979978,109550.0,109540.0,0.05641398]
[1761936697672,0.64079978,109550.0,109540.0,0.05741398]
[1761936697875,0.66262978,109550.0,109540.0,0.05741398]
[1761936698657,0.66362978,109550.0,109540.0,0.05741398]
[1761936698887,0.66262978,109550.0,109540.0,0.02968398]
[1761936699086,0.66362978,109550.0,109540.0,0.02968398]
[1761936699677,0.66362978,109550.0,109540.0,0.02868398]
[1761936699984,3.00362978,109550.0,109540.0,0.02868398]
[1761936700436,3.00362978,109550.0,109540.0,0.02768398]
[1761936700656,3.00562978,109550.0,109540.0,0.02768398]
[1761936700863,3.43552453,109550.0,109540.0,0.02768398]
[1761936701066,3.47170681,109550.0,109540.0,0.02768398]
[1761936701278,3.12289589,109550.0,109540.0,0.02768398]
[1761936701717,3.09544879,109550.0,109540.0,0.02768398]
[1761936701934,3.09344879,109550.0,109540.0,0.02768398]
[1761936702354,2.58073503,109550.0,109540.0,0.04352398]
[1761936703197,3.01262978,109550.0,109540.0,0.02768398]
[1761936703406,3.00462978,109550.0,109540.0,0.02768398]
[1761936703811,3.01062978,109550.0,109540.0,0.02768398]
[1761936704005,3.00962978,109550.0,109540.0,0.02768398]
[1761936704264,3.01062978,109550.0,109540.0,0.02768398]
[1761936704374,3.00862978,109550.0,109540.0,0.02768398]
[1761936705030,3.00962978,109550.0,109540.0,0.02768398]
[1761936705610,3.02295067,109550.0,109540.0,0.02768398]
[1761936705810,3.02395067,109550.0,109540.0,0.02768398]
[1761936706033,3.02295067,109550.0,109540.0,0.02768398]
[1761936707675,3.02395067,109550.0,109540.0,0.02768398]
[1761936708022,3.03827557,109550.0,109540.0,0.02768398]
[1761936708428,3.03727557,109550.0,109540.0,0.02768398]
[1761936709242,3.03827557,109550.0,109540.0,0.02768398]
[1761936709893,3.03727557,109550.0,109540.0,0.02768398]
[1761936710112,3.03827557,109550.0,109540.0,0.02768398]
[1761936710346,3.03727557,109550.0,109540.0,0.02768398]
[1761936710970,3.03827557,109550.0,109540.0,0.02768398]
[1761936711170,3.03727557,109550.0,109540.0,0.02768398]
[1761936712009,2.58455082,109550.0,109540.0,0.04418398]
[1761936712215,2.55721082,109550.0,109540.0,0.07818398]
[1761936712429,0.03464579,109550.0,109540.0,0.69066043]
[1761936712644,0.006,109550.0,109540.0,0.07818398]
[1761936713286,0.18856503,109550.0,109540.0,0.07818398]
[1761936713500,0.006,109550.0,109540.0,0.07818398]
[1761936713708,0.18856503,109550.0,109540.0,0.07818398]
[1761936713920,0.18256503,109550.0,109540.0,0.07818398]
[1761936714151,0.73054715,109550.0,109540.0,0.05568398]
[1761936714324,0.75734715,109550.0,109540.0,0.02768398]
[1761936715001,0.75734715,109550.0,109540.0,0.04418398]
[1761936715413,0.75834715,109550.0,109540.0,0.04418398]
[1761936715622,0.75634715,109550.0,109540.0,0.02768398]
[1761936715836,0.75934715,109550.0,109540.0,0.04418398]
[1761936716044,0.73454715,109550.0,109540.0,0.05546398]
[1761936716249,0.74987143,109550.0,109540.0,0.05546398]
[1761936716465,0.74887143,109550.0,109540.0,0.05546398]
[1761936716922,0.77367143,109550.0,109540.0,0.05546398]
[1761936717145,0.77367143,109550.0,109540.0,0.02768398]
[1761936717348,0.77467143,109550.0,109540.0,0.02768398]
[1761936717571,1.54456618,109550.0,109540.0,0.02768398]
[1761936717788,3.54456618,109550.0,109540.0,0.02768398]
[1761936719308,3.11467143,109550.0,109540.0,0.02768398]
[1761936719512,3.11490283,109550.0,109540.0,0.02768398]
[1761936721388,0.20088931,109550.0,109540.0,0.06668398]
[1761936724152,0.01832428,109550.0,109540.0,0.06668398]
[1761936724392,0.20088931,109550.0,109540.0,0.06668398]
[1761936724611,0.01832428,109550.0,109540.0,0.06668398]
[1761936724795,0.01832428,109550.0,109540.0,0.24926568]
[1761936725426,0.21849931,109550.0,109540.0,0.04418398]
[1761936725684,0.21549931,109550.0,109540.0,0.04418398]
[1761936725900,0.22597503,109550.0,109540.0,0.02768398]
[1761936726332,0.20217503,109550.0,109540.0,0.04418398]
[1761936726541,0.20017503,109550.0,109540.0,0.04418398]
[1761936726749,0.20317503,109550.0,109540.0,0.04418398]
[1761936726934,2.22797503,109550.0,109540.0,0.02768398]
[1761936727617,2.22897503,109550.0,109540.0,0.02768398]
[1761936727827,2.22797503,109550.0,109540.0,0.04418398]
[1761936728036,2.22897503,109550.0,109540.0,0.04418398]
[1761936728252,0.21749503,109550.0,109540.0,0.04418398]
[1761936728462,0.21749503,109550.0,109540.0,0.06668398]
[1761936728674,0.20317503,109550.0,109540.0,0.06668398]
[1761936728885,0.18556503,109550.0,109540.0,0.06668398]
[1761936730220,0.18556503,109550.0,109540.0,0.08494215]
[1761936730433,0.003,109550.0,109540.0,0.08494215]
[1761936730610,0.18556503,109550.0,109540.0,0.06668398]
[1761936731407,0.003,109550.0,109540.0,0.06668398]
[1761936731611,0.18556503,109550.0,109540.0,0.06668398]